Cogmind - Beta 13 @@@ ROGUE MODE // 2024.04.15 @ 21:38:55 Player: Morphaana Result: Self-destructed Performance ------------- Evolutions (7) 3500 Regions Visited (17) 3400 Robots Destroyed (137) 685 Value Destroyed (3187) 3187 Prototype IDs (45) 900 Alien Tech Used (0) 0 Bonus (844) 844 TOTAL SCORE: 12516 Bonus ------- High Alert Combat Kills 41 Follower Combat Kills 203 Aligned with FarCom 300 Met Data Miner 300 Cogmind --------- Core Integrity 1044/1300 Matter 242/300 Energy 148/150 System Corruption 0% Temperature Cool (12) Movement Flying (40) Location -3/Research Parts ------- > --- POWER (2) -------- Micro Nuclear Core > --- PROPULSION (6) --- Impulse Thruster > --- UTILITY (11) ----- Enhanced Optical Array Graphene Brace Hacking Suite Hacking Suite > --- WEAPON (2) ------- (None) > --- INVENTORY (5) ---- (None) Peak State ------------ > --- POWER ------------ Light Deuterium Engine Micro Nuclear Core > --- PROPULSION ------- Improved Flight Unit Improved Flight Unit Cesium-ion Thruster Field Propulsion Drive Field Propulsion Drive Field Propulsion Drive > --- UTILITY ---------- Advanced Heat Sink Enhanced Optical Array Transmission Jammer Advanced ECM Suite Improved Propulsion Shielding Advanced EM Disruption Field Hacking Suite Hacking Suite System Shield > --- WEAPON ----------- Improved Heavy Machine Gun Power Maul > --- INVENTORY -------- Light Angular Momentum Engine Field Propulsion Drive Field Propulsion Drive [Rating: 83] Favorites ----------- Power Improved Ion Engine Engine Improved Ion Engine Power Core Micro Nuclear Core Reactor Light Antimatter Reactor Propulsion Light Treads Treads Light Treads Flight Unit Flying Fortress v7 Utility High-capacity Storage Unit Device Structural Scanner Storage High-capacity Storage Unit Processor Signal Interpreter Hackware Hacking Suite Protection Layered Light Armor Plating Weapon Heavy Assault Rifle Energy Gun Medium Laser Ballistic Gun Heavy Assault Rifle Launcher Rocket Launcher Impact Weapon Power Maul Slashing Weapon Katana Build | -11 -10 -10 -9 -9 -9 -8 -8 -7 -7 -7 -6 -6 -6 -5 -5 -4 -3 ------- Run | Yrd Mat Min Mat Min Exi Min Mat Fac Low Low Fac Low Dat Pro Fac Fac Res Slots Evolved 14 | . . . 2 . . . 2 2 . . 2 . . . 2 2 2 Power 1 | . . . . . . . . . . . . . . . . 1 . Propulsion 4 | . . . 1 . . . . 1 . . . . . . 1 1 . Utility 9 | . . . 1 . . . 2 1 . . 2 . . . 1 . 2 Weapon . | . . . . . . . . . . . . . . . . . . Parts Attached 159 | 6 19 2 22 4 1 6 24 8 . 3 13 10 . 1 17 12 11 Power 22 | 1 3 . 1 . 1 . 1 . . . 2 1 . 1 3 6 2 Engine 15 | 1 3 . 1 . 1 . 1 . . . 1 1 . 1 2 3 . Core 5 | . . . . . . . . . . . 1 . . . 1 2 1 Reactor 2 | . . . . . . . . . . . . . . . . 1 1 Propulsion 38 | 2 3 . 7 . . 2 7 2 . . . 3 . . 4 3 5 Treads 21 | 2 3 . 7 . . 2 7 . . . . . . . . . . Leg . | . . . . . . . . . . . . . . . . . . Wheel . | . . . . . . . . . . . . . . . . . . Hover . | . . . . . . . . . . . . . . . . . . Flight 17 | . . . . . . . . 2 . . . 3 . . 4 3 5 Utility 49 | 1 3 . 3 . . . 6 6 . 3 10 6 . . 5 3 3 Device 19 | . . . . . . . 1 3 . . 5 2 . . 4 2 2 Storage 4 | 1 2 . . . . . . 1 . . . . . . . . . Processor 6 | . 1 . . . . . 2 . . 2 1 . . . . . . Hackware 6 | . . . . . . . 1 1 . . 1 . . . 1 1 1 Protection 14 | . . . 3 . . . 2 1 . 1 3 4 . . . . . Artifact . | . . . . . . . . . . . . . . . . . . Weapon 50 | 2 10 2 11 4 . 4 10 . . . 1 . . . 5 . 1 Energy Gun 6 | 1 3 . 1 . . . . . . . . . . . 1 . . Energy Cannon . | . . . . . . . . . . . . . . . . . . Ballistic Gun 26 | 1 4 1 7 2 . 2 6 . . . . . . . 3 . . Ballistic Cannon . | . . . . . . . . . . . . . . . . . . Launcher 12 | . 3 1 2 1 . 2 3 . . . . . . . . . . Special Weapon . | . . . . . . . . . . . . . . . . . . Impact Weapon 2 | . . . . . . . . . . . . . . . 1 . 1 Slashing Weapon 4 | . . . 1 1 . . 1 . . . 1 . . . . . . Piercing Weapon . | . . . . . . . . . . . . . . . . . . Special Melee Weapon . | . . . . . . . . . . . . . . . . . . Unidentified Prototypes 5 | . . . 1 . . . . . . . 1 . . . 2 1 . Parts Lost 45 | . 5 . 4 . . . 1 . . 3 . 5 . 3 . 10 14 Power 10 | . 2 . . . . . 1 . . 1 . 1 . 1 . 2 2 Propulsion 15 | . 1 . 2 . . . . . . . . 1 . . . 4 7 Utility 13 | . . . 1 . . . . . . 1 . 3 . 1 . 4 3 Weapon 7 | . 2 . 1 . . . . . . 1 . . . 1 . . 2 Highest Loss Streak 12 | . 2 . 2 . . . 1 . . 2 . 5 . 2 . 7 12 To Critical Strikes 1 | . . . 1 . . . . . . . . . . . . . . Average Slot Usage (%) 89 | . 89 100 97 100 100 100 98 75 76 70 67 70 73 68 78 87 61 Engine 9 | . 13 14 11 11 11 11 8 7 7 6 5 3 6 5 3 5 3 Treads 19 | . 22 28 32 33 33 33 27 . . . . . . . . . . Flight 3 | . . . . . . . . 6 7 7 6 15 20 20 22 26 15 Device 6 | . . . . . . . 9 16 15 15 15 9 6 6 12 14 13 Storage 8 | . 14 14 11 11 11 11 9 4 7 7 6 1 . . . . . Processor 8 | . 9 14 11 11 11 11 9 1 . 5 9 6 6 6 5 5 4 Hackware 5 | . . . . . . . 7 15 15 8 6 13 13 13 16 17 9 Protection 7 | . . . 9 11 11 11 9 6 7 7 8 10 13 11 5 2 . Ballistic Gun 14 | . 25 27 20 15 22 13 17 . . . . . . . 1 5 3 Launcher 1 | . . . . . . 8 . 7 7 2 . . . . . . . Slashing Weapon 1 | . . . . 6 . . . 7 7 7 5 6 6 3 . . . Naked Turns . | . . . . . . . . . . . . . . . . . . Heaviest Build 63 | 14 49 50 58 56 56 56 63 42 42 42 35 33 14 14 23 35 24 Greatest Support 60 | 40 40 40 60 60 60 60 60 50 50 50 50 50 14 14 29 39 36 Greatest Overweight (x) 2 | 2 1 1 1 . . . 1 . . . . 1 . . 1 1 1 Average Overweight (x) . | . . 1 . . . . . . . . . . . . . . . Largest Inventory Capacity 20 | 8 20 20 20 20 20 20 20 20 15 15 15 15 5 5 5 5 5 Average Capacity 15 | 6 11 20 20 20 20 20 20 11 15 15 15 7 5 5 5 5 5 Most Carried 20 | 1 12 15 20 20 20 20 20 15 15 14 14 15 5 5 5 5 5 Average Carried 13 | . 5 13 18 19 19 19 19 8 13 13 12 6 5 4 4 3 3 Final Capacity 20 | 8 20 20 20 20 20 20 20 15 15 15 15 5 5 5 5 5 5 Final Carried 20 | 1 12 15 20 20 20 20 15 13 14 13 14 5 5 4 5 2 . Class Distribution -------------------- 39% | Scavenger-Mutant 28% | Mutant 15% | Hacker-Mutant 9% | Hacker-Sprinter 6% | Infiltrator-Ninja Dominant Class ---------------- Mutant | -10/Materials Mutant | -10/Mines Mutant | -9/Materials Scavenger-Mutant | -9/Mines Scavenger-Mutant | -9/Exiles Scavenger-Mutant | -8/Mines Scavenger-Mutant | -8/Materials Hacker-Mutant | -7/Factory Hacker-Mutant | -7/Lower Caves Infiltrator-Mutant | -7/Lower Caves Infiltrator-Ninja | -6/Factory Hacker-Sprinter | -6/Lower Caves Hacker-Sprinter | -6/Data Miner Hacker-Sprinter | -5/Proximity Caves Hacker-Sprinter | -5/Factory Hacker-Sprinter | -4/Factory Hacker-Mutant | -3/Research Resources | -11 -10 -10 -9 -9 -9 -8 -8 -7 -7 -7 -6 -6 -6 -5 -5 -4 -3 ----------- Run | Yrd Mat Min Mat Min Exi Min Mat Fac Low Low Fac Low Dat Pro Fac Fac Res Matter Collected 3456 | 243 638 125 745 89 . 86 682 215 153 41 . 44 . 161 42 88 104 Remotely . | . . . . . . . . . . . . . . . . . . Salvage Created 3803 | . 742 111 1109 33 . 165 893 186 154 58 45 81 . . 42 158 26 Parts 280 | . 50 4 96 6 . 11 66 13 11 2 5 5 . . 3 7 1 Haulers Intercepted 10 | . 2 . 2 . . . 3 3 . . . . . . . . . Recyclers Shooed 2 | . 1 . 1 . . . . . . . . . . . . . . Parts Field Recycled . | . . . . . . . . . . . . . . . . . . Retrieved Matter . | . . . . . . . . . . . . . . . . . . Parts Self-Destructed 23 | . . . . . . . . . 10 4 . 4 . 5 . . . Prevented 4 | . . . . . . . . . . . . . . 4 . . . Kills | -11 -10 -10 -9 -9 -9 -8 -8 -7 -7 -7 -6 -6 -6 -5 -5 -4 -3 ------- Run | Yrd Mat Min Mat Min Exi Min Mat Fac Low Low Fac Low Dat Pro Fac Fac Res Combat Hostiles Destroyed 93 | . 13 5 28 4 . 4 18 1 8 2 1 3 . . . 5 1 Melee 10 | . . . . . . . . 1 1 1 1 3 . . . 3 . Guns 53 | . 11 2 25 1 . 1 13 . . . . . . . . . . AOE 26 | . 1 3 3 3 . 3 5 . 7 1 . . . . . . . Classes Destroyed 14 | . 8 . 3 . . 1 . 1 . . . . . . . 1 . Worker 8 | . 1 . 5 . . . 2 . . . . . . . . . . Builder 4 | . 3 . . . . . . . . . . . . . 1 . . Hauler 10 | . 2 . 2 . . . 3 3 . . . . . . . . . Recycler 3 | . 1 . . . . 1 1 . . . . . . . . . . Mechanic 1 | . . . 1 . . . . . . . . . . . . . . Operator 4 | . 1 . 1 . . . 1 . . . . . . . 1 . . Watcher 14 | . 3 . 5 . . . 5 . . . . . . . . 1 . Swarmer 45 | . 2 3 13 4 . 3 6 . 5 1 . 3 . . . 4 1 Cutter 1 | . . . . . . . . . . . . . . . . 1 . Grunt 28 | . 11 2 8 . . . 6 . 1 . . . . . . . . Brawler 2 | . . . . . . 1 1 . . . . . . . . . . Duelist 1 | . . . 1 . . . . . . . . . . . . . . Sentry 12 | . . . 6 . . . 5 . 1 . . . . . . . . Programmer 4 | . . . . . . . . 1 1 1 1 . . . . . . Best Kill Streak 8 | . 6 3 8 4 . 3 7 1 3 1 1 3 . . 1 3 1 Combat Bots Only 6 | . 3 3 5 4 . 3 6 1 3 1 1 3 . . . 3 1 Max Kills in Single Turn 4 | . 3 1 3 3 . 2 4 1 2 1 1 1 . . 1 1 1 Gunslinging . | . . . . . . . . . . . . . . . . . . Exploded 3 | . 1 1 2 3 . 2 3 . 2 1 . . . . . . . Melee 1 | . . . . . . . . 1 1 1 1 1 . . . 1 . Uniques/NPCs Destroyed . | . . . . . . . . . . . . . . . . . . Combat | -11 -10 -10 -9 -9 -9 -8 -8 -7 -7 -7 -6 -6 -6 -5 -5 -4 -3 -------- Run | Yrd Mat Min Mat Min Exi Min Mat Fac Low Low Fac Low Dat Pro Fac Fac Res Hostile Shots Fired 817 | . 87 38 127 6 . 14 79 41 45 80 9 64 . 47 4 91 85 Missed 308 | . 26 13 41 2 . 2 21 24 27 26 4 21 . 30 2 29 40 Damage Taken 7352 | . 701 279 935 34 . 149 796 116 284 879 74 661 . 288 49 1126 981 Core 1233 | . 67 61 101 . . 7 75 37 12 146 . 128 . 72 23 248 256 Absorbed by Shields . | . . . . . . . . . . . . . . . . . . Redirected to Shielding 207 | . . . . . . . . . . . 37 68 . 26 17 59 . Regen/Repaired (Parts) 429 | . 87 . 77 . . . . . . . 198 . . . 67 . . Core Remaining (%) 78 | 100 . 48 . . . 73 86 . . 72 . . . 76 97 78 . Volleys Fired 278 | . 82 12 94 3 . 8 60 . 13 . . . . . 3 3 . Largest 2 | . 2 2 2 2 . 2 2 . 1 . . . . . 1 1 . Hottest 98 | . 70 40 98 46 . 53 56 . 33 . . . . . 65 15 . Shots Fired 519 | . 161 18 182 4 . 16 118 . 13 1 . . . . 3 3 . Gun 489 | . 157 14 179 3 . 14 116 . . . . . . . 3 3 . Cannon . | . . . . . . . . . . . . . . . . . . Launcher 30 | . 4 4 3 1 . 2 2 . 13 1 . . . . . . . Special . | . . . . . . . . . . . . . . . . . . Kinetic 448 | . 129 14 168 3 . 14 116 . . . . . . . 1 3 . Thermal 39 | . 28 . 11 . . . . . . . . . . . . . . Explosive 30 | . 4 4 3 1 . 2 2 . 13 1 . . . . . . . Electromagnetic 2 | . . . . . . . . . . . . . . . 2 . . Robot Hit Streak 24 | . 9 4 18 5 . 6 24 . 8 . . . . . . . . Robot Miss Streak 24 | . 8 2 5 1 . 2 24 . . 1 . . . . 3 5 . Penetration Max . | . . . . . . . . . . . . . . . . . . Secondary Targets 2 | . . . 2 . . . . . . . . . . . . . . Max Gunslinging Chain 1 | . . . 1 . . . . . . . . . . . . . . Shots Hit Robots 367 | . 89 11 106 4 . 10 92 18 8 6 2 6 . 1 2 10 2 Core Hits 228 | . 41 6 50 4 . 8 94 4 11 2 1 2 . . 1 4 . Critical Kills 4 | . 1 . 1 . . . . . . . . . . . . 2 . Critical Parts Destroyed 1 | . . . . . . . . . . . . . . . . 1 . Critical Strikes 10 | . 3 . 1 . . . . 3 . . . . . . . 3 . Burn 2 | . 2 . . . . . . . . . . . . . . . . Destroy 2 | . 1 . 1 . . . . . . . . . . . . . . Smash 3 | . . . . . . . . . . . . . . . . 3 . Sever 3 | . . . . . . . . 3 . . . . . . . . . Melee Attacks 123 | . . . 1 4 . . . 38 2 10 11 10 . 1 8 23 15 Impact 46 | . . . . . . . . . . . . . . . 8 23 15 Slashing 77 | . . . 1 4 . . . 38 2 10 11 10 . 1 . . . Piercing . | . . . . . . . . . . . . . . . . . . Sneak Attacks 6 | . . . . 1 . . . 4 . . . . . . 1 . . Combat Hostiles . | . . . . . . . . . . . . . . . . . . Follow-up Attacks . | . . . . . . . . . . . . . . . . . . Damage Inflicted 8625 | . 1332 267 2129 227 . 278 1779 704 605 240 65 201 . 36 179 505 78 Guns 4658 | . 1136 142 1709 19 . 125 1527 . . . . . . . . . . Cannons . | . . . . . . . . . . . . . . . . . . Explosions 1777 | . 196 125 367 112 . 153 252 . 536 36 . . . . . . . Melee 2137 | . . . . 96 . . . 704 69 204 65 201 . 36 179 505 78 Ramming 53 | . . . 53 . . . . . . . . . . . . . . Kinetic 4305 | . 913 142 1579 19 . 125 1527 . . . . . . . . . . Thermal 482 | . 223 . 259 . . . . . . . . . . . . . . Explosive 1648 | . 196 125 238 112 . 153 252 . 536 36 . . . . . . . Electromagnetic . | . . . . . . . . . . . . . . . . . . Impact 762 | . . . . . . . . . . . . . . . 179 505 78 Slashing 1375 | . . . . 96 . . . 704 69 204 65 201 . 36 . . . Piercing . | . . . . . . . . . . . . . . . . . . Highest Corruption 3 | . 3 3 . . . . . . 1 2 1 . . . . 2 . Average Corruption 2 | . 2 3 . . . . . . 1 1 1 . . . . 1 . Corruption Purged 2 | . . . . . . . . . . . 2 . . . . . . Corruption Blocked . | . . . . . . . . . . . . . . . . . . Effects 51 | . 28 14 . . . . . . 5 3 1 . . . . . . Message Errors 12 | . 8 3 . . . . . . 1 . . . . . . . . Matter Fused 8 | . 6 1 . . . . . . 1 . . . . . . . . Heat Flow Errors 9 | . 6 . . . . . . . . 2 1 . . . . . . Energy Discharges 6 | . 2 4 . . . . . . . . . . . . . . . Data Loss (minor) 4 | . 1 2 . . . . . . 1 . . . . . . . . Data Loss (major) 7 | . 2 3 . . . . . . 2 . . . . . . . . Misfires 3 | . 2 . . . . . . . . 1 . . . . . . . Alerts 1 | . 1 . . . . . . . . . . . . . . . . Weapon Failures 1 | . . 1 . . . . . . . . . . . . . . . Overload Shots . | . . . . . . . . . . . . . . . . . . Overflow Damage 369 | . . 16 80 36 . . . 23 25 . . 8 . 6 34 126 15 Projectiles . | . . . . . . . . . . . . . . . . . . Explosions 121 | . . 16 80 . . . . . 25 . . . . . . . . Melee 248 | . . . . 36 . . . 23 . . . 8 . 6 34 126 15 Knockbacks 4 | . . . 2 . . . . . . . . . . . 1 1 . Impact 4 | . . . 2 . . . . . . . . . . . 1 1 . Kinetic . | . . . . . . . . . . . . . . . . . . Secondary . | . . . . . . . . . . . . . . . . . . Self-Inflicted Damage 177 | . 7 40 . . . 19 . . 80 31 . . . . . . . Shots 7 | . 1 1 . . . 1 . . 3 1 . . . . . . . Rammed 4 | . . . 4 . . . . . . . . . . . . . . Targets Rammed 6 | . . . 6 . . . . . . . . . . . . . . Kicked . | . . . . . . . . . . . . . . . . . . Crushed 2 | . . . 2 . . . . . . . . . . . . . . Highest Temperature 347 | . 285 9 347 . . 5 51 . 31 282 116 . . . 14 . . Average Temperature 58 | . 90 3 62 . . 3 9 . 14 126 60 . . . 9 . . Received Heat Transfer 1371 | . 330 84 291 . . 18 342 18 24 72 . . . 39 9 36 108 Siege Activations . | . . . . . . . . . . . . . . . . . . Robots Corrupted . | . . . . . . . . . . . . . . . . . . Combat Hostiles . | . . . . . . . . . . . . . . . . . . Parts Fried 10 | . . . . . . . . . . . . . . . 3 5 2 Impact Corruptions 8 | . . . . . . . . . . . . . . . 1 6 1 Robots Melted 1 | . 1 . . . . . . . . . . . . . . . . Combat Hostiles 1 | . 1 . . . . . . . . . . . . . . . . Parts Melted 2 | . 2 . . . . . . . . . . . . . . . . Heat Transferred 1099 | . 777 . 322 . . . . . . . . . . . . . . Parts Sabotaged . | . . . . . . . . . . . . . . . . . . Parts Stolen . | . . . . . . . . . . . . . . . . . . Parts Stripped . | . . . . . . . . . . . . . . . . . . Power Chain Reactions . | . . . . . . . . . . . . . . . . . . Alert | -11 -10 -10 -9 -9 -9 -8 -8 -7 -7 -7 -6 -6 -6 -5 -5 -4 -3 ------- Run | Yrd Mat Min Mat Min Exi Min Mat Fac Low Low Fac Low Dat Pro Fac Fac Res Peak Influence 688 | . 256 160 513 275 . 89 216 179 . . 80 . . . 688 389 446 Initial 588 | . . . 21 177 . . 34 67 . . 75 . . . 588 177 204 Average 164 | . 70 67 335 189 . 12 106 67 . . 38 . . . 552 256 266 Maximum Alert Level 2 | . 1 . 2 1 . . 1 . . . . . . . 2 1 2 Low Security (%) 69 | 100 93 100 10 88 . 100 95 100 . . 100 . . . . 39 9 Level 1 19 | . 6 . 59 11 . . 4 . . . . . . . 26 60 71 Level 2 10 | . . . 29 . . . . . . . . . . . 73 . 18 Level 3 . | . . . . . . . . . . . . . . . . . . Level 4 . | . . . . . . . . . . . . . . . . . . Level 5 . | . . . . . . . . . . . . . . . . . . High Security . | . . . . . . . . . . . . . . . . . . Max Security . | . . . . . . . . . . . . . . . . . . Squads Dispatched 20 | . 3 . 1 1 . . 2 2 . . 4 . . . 1 3 3 Investigation 12 | . 2 . 1 . . . 1 1 . . 3 . . . 1 1 2 Extermination 4 | . . . . . . . . 1 . . 1 . . . . 1 1 Reinforcement 3 | . 1 . . 1 . . . . . . . . . . . 1 . Assault . | . . . . . . . . . . . . . . . . . . Garrison 1 | . . . . . . . 1 . . . . . . . . . . Intercept . | . . . . . . . . . . . . . . . . . . Searches Triggered 1 | . . . . . . . . . . . . . . . 1 . . Data Miner Redirects 2 | . . . . . . . . . . . . . . . 1 . 1 Construction Impeded 1 | . . . . 1 . . . . . . . . . . . . . Haulers Reinforced . | . . . . . . . . . . . . . . . . . . Active Scanning Responses . | . . . . . . . . . . . . . . . . . . Cargo Convoy Interrupts . | . . . . . . . . . . . . . . . . . . Stealth | -11 -10 -10 -9 -9 -9 -8 -8 -7 -7 -7 -6 -6 -6 -5 -5 -4 -3 --------- Run | Yrd Mat Min Mat Min Exi Min Mat Fac Low Low Fac Low Dat Pro Fac Fac Res Distress Signals 12 | . 1 . 6 . . . 3 . . . . . . 1 . . 1 Communications Jammed 5 | . . . . . . . . . . . . . . 3 . 1 1 Distress Signals 2 | . . . . . . . . . . . . . . . . 1 1 Times Spotted 222 | . 22 7 45 4 . 7 33 10 8 10 3 3 . 25 5 15 25 Peak Tracking Total 11 | . 4 3 6 4 . 4 4 6 3 8 4 3 . 9 3 6 11 Tactical Retreats 35 | . . . 3 . . 2 1 8 1 3 1 . . 8 1 2 5 Traps | -11 -10 -10 -9 -9 -9 -8 -8 -7 -7 -7 -6 -6 -6 -5 -5 -4 -3 ------- Run | Yrd Mat Min Mat Min Exi Min Mat Fac Low Low Fac Low Dat Pro Fac Fac Res Traps Triggered 6 | . 3 . 1 . . . . . . . . . . . . . 2 Indirectly . | . . . . . . . . . . . . . . . . . . Trap Hack Attempts . | . . . . . . . . . . . . . . . . . . Triggered . | . . . . . . . . . . . . . . . . . . Disarmed 11 | . . . 6 . . . 5 . . . . . . . . . . Reprogrammed 10 | . 4 . 6 . . . . . . . . . . . . . . Reused . | . . . . . . . . . . . . . . . . . . Traps Extracted . | . . . . . . . . . . . . . . . . . . Installed . | . . . . . . . . . . . . . . . . . . Triggered 6 | . . . . . . . . . 1 . . . . 5 . . . Machines | -11 -10 -10 -9 -9 -9 -8 -8 -7 -7 -7 -6 -6 -6 -5 -5 -4 -3 ---------- Run | Yrd Mat Min Mat Min Exi Min Mat Fac Low Low Fac Low Dat Pro Fac Fac Res Machines Disabled 1 | . . . 1 . . . . . . . . . . . . . . Max in Single Turn 1 | . . . 1 . . . . . . . . . . . . . . Garrison Access 1 | . . . . . . . 1 . . . . . . . . . . Machines Repaired . | . . . . . . . . . . . . . . . . . . Machines Dismantled . | . . . . . . . . . . . . . . . . . . Machines Sabotaged . | . . . . . . . . . . . . . . . . . . Overloaded Fab Kills . | . . . . . . . . . . . . . . . . . . Hacking | -11 -10 -10 -9 -9 -9 -8 -8 -7 -7 -7 -6 -6 -6 -5 -5 -4 -3 --------- Run | Yrd Mat Min Mat Min Exi Min Mat Fac Low Low Fac Low Dat Pro Fac Fac Res Machines Accessed 73 | . 10 . 13 . 1 . 9 11 . . 8 . 4 . 9 3 5 Terminals 39 | . 7 . 9 . . . 7 7 . . 1 . . . 4 1 3 Fabricators 6 | . . . . . . . . 1 . . 2 . . . 1 1 1 Repair Stations 6 | . 1 . 1 . . . . . . . 2 . . . 2 . . Recycling Units 13 | . 2 . 2 . . . . 3 . . 3 . . . 2 1 . Scanalyzers 2 | . . . 1 . . . 1 . . . . . . . . . . Garrison Access 2 | . . . . . . . 1 . . . . . . . . . 1 Total Hacks 207 | . 23 . 32 . 1 . 30 27 . . 21 . 30 . 26 7 10 Successful 116 | . 12 . 16 . 1 . 18 6 . . 10 . 30 . 14 6 3 Failed 90 | . 10 . 16 . . . 12 21 . . 11 . . . 12 1 7 Catastrophic 19 | . 2 . 2 . . . 1 4 . . 4 . . . 3 . 3 Database Lockouts 1 | . 1 . . . . . . . . . . . . . . . . Manual 77 | . 12 . 13 . 5 . 20 14 . . . . . . 7 2 4 Terminals 106 | . 17 . 24 . . . 27 17 . . 1 . . . 11 3 6 Fabricators 15 | . . . . . . . . 3 . . 6 . . . 2 2 2 Repair Stations 22 | . 2 . 3 . . . . . . . 9 . . . 8 . . Recycling Units 26 | . 4 . 3 . . . . 7 . . 5 . . . 5 2 . Scanalyzers 4 | . . . 2 . . . 2 . . . . . . . . . . Garrison Access 3 | . . . . . . . 1 . . . . . . . . . 2 Terminal Hacks 69 | . 6 . 10 . 1 . 13 3 . . 1 . 30 . 2 2 1 Record 11 | . . . . . . . . . . . . . 11 . . . . Part Schematic 17 | . . . . . . . 5 . . . . . 12 . . . . Robot Schematic 4 | . . . . . . . . . . . . . 4 . . . . Robot Analysis 5 | . 3 . 1 . . . 1 . . . . . . . . . . Prototype ID Bank 6 | . . . 2 . . . 1 . . . . . 3 . . . . Open DSF 2 | . . . . . . . . . . . 1 . . . . . 1 Level Access Points 1 | . . . . . . . . . . . . . . . . 1 . Branch Access Points 1 | . . . . . . . . . . . . . . . . 1 . Terminal Index 2 | . . . 1 . . . . 1 . . . . . . . . . Alert Level 2 | . . . . . . . 1 . . . . . . . 1 . . Unreport Threat 1 | . . . . . . . . 1 . . . . . . . . . Locate Traps 1 | . . . 1 . . . . . . . . . . . . . . Disarm Traps 3 | . . . 1 . . . 2 . . . . . . . . . . Reprogram Traps 2 | . 1 . 1 . . . . . . . . . . . . . . Assault Status 1 | . . . . . . . 1 . . . . . . . . . . Recall Investigation 4 | . 1 . 1 . . . 1 . . . . . . . 1 . . Hauler Manifests 5 | . 1 . 2 . . . 1 1 . . . . . . . . . Derelict Proto ID Bank 1 | . . . . . 1 . . . . . . . . . . . . Fabricator Hacks 11 | . . . . . . . . 1 . . 4 . . . 2 2 2 Load Schematic 6 | . . . . . . . . 1 . . 2 . . . 1 1 1 Build 5 | . . . . . . . . . . . 2 . . . 1 1 1 Repair Station Hacks 14 | . 2 . 2 . . . . . . . 4 . . . 6 . . Scan Component 7 | . 1 . 1 . . . . . . . 2 . . . 3 . . Repair 7 | . 1 . 1 . . . . . . . 2 . . . 3 . . Recycling Unit Hacks 15 | . 4 . 2 . . . . 2 . . 1 . . . 4 2 . Process 2 | . 1 . . . . . . . . . . . . . 1 . . Report Inventory 9 | . 2 . 2 . . . . 2 . . 1 . . . 1 1 . Retrieve Matter 2 | . 1 . . . . . . . . . . . . . 1 . . Retrieve Components 2 | . . . . . . . . . . . . . . . 1 1 . Scanalyzer 4 | . . . 2 . . . 2 . . . . . . . . . . Insert Component 2 | . . . 1 . . . 1 . . . . . . . . . . Analyze 2 | . . . 1 . . . 1 . . . . . . . . . . Garrison Access Hacks 1 | . . . . . . . 1 . . . . . . . . . . Seal Access 1 | . . . . . . . 1 . . . . . . . . . . Unauthorized Hacks 2 | . . . . . . . 2 . . . . . . . . . . Terminals 2 | . . . . . . . 2 . . . . . . . . . . Botnet 2 | . . . . . . . 2 . . . . . . . . . . Fabricators . | . . . . . . . . . . . . . . . . . . Repair Stations . | . . . . . . . . . . . . . . . . . . Recycling Units . | . . . . . . . . . . . . . . . . . . Scanalyzers . | . . . . . . . . . . . . . . . . . . Garrison Access . | . . . . . . . . . . . . . . . . . . Data Cores Recovered 2 | . . . . . . . 1 . . . . . . . 1 . . Used 1 | . . . . . . . . . . . . . . . 1 . . Hacking Detections 57 | . 8 . 10 . . . 5 11 . . 6 . . . 9 3 5 Full Trace Events 14 | . 3 . 1 . . . 2 1 . . 3 . . . 1 1 2 Feedback Events 2 | . . . . . . . . . . . 1 . . . . . 1 Corruption 1 | . . . . . . . . . . . 1 . . . . . . Hackware Fried 1 | . . . . . . . . . . . . . . . . . 1 Feedback Blocked . | . . . . . . . . . . . . . . . . . . Robot Schematics Acquired 4 | . . . . . . . . . . . . . 4 . . . . Robots Built . | . . . . . . . . . . . . . . . . . . Authchips . | . . . . . . . . . . . . . . . . . . Time . | . . . . . . . . . . . . . . . . . . Total Robot Build Rating . | . . . . . . . . . . . . . . . . . . Part Schematics Acquired 18 | . . . 1 . . . 5 . . . . . 12 . . . . Parts Built 5 | . . . . . . . . . . . 2 . . . 1 1 1 Authchips . | . . . . . . . . . . . . . . . . . . Time 304 | . . . . . . . . . . . 109 . . . 49 73 73 Total Part Build Rating 14 | . . . . . . . . . . . 6 . . . 2 3 3 Parts Repaired 7 | . 1 . 1 . . . . . . . 2 . . . 3 . . Time 220 | . 13 . 26 . . . . . . . 82 . . . 99 . . Parts Recycled . | . . . . . . . . . . . . . . . . . . Recycled Matter 15 | . 6 . . . . . . . . . . . . . 9 . . Retrieved Matter 15 | . 6 . . . . . . . . . . . . . 9 . . Retrieved Components 3 | . . . . . . . . . . . . . . . . 3 . Parts Scanalyzed 2 | . . . 1 . . . 1 . . . . . . . . . . Part Schematics Acquired 2 | . . . 1 . . . 1 . . . . . . . . . . Parts Damaged . | . . . . . . . . . . . . . . . . . . Bothacking | -11 -10 -10 -9 -9 -9 -8 -8 -7 -7 -7 -6 -6 -6 -5 -5 -4 -3 ------------ Run | Yrd Mat Min Mat Min Exi Min Mat Fac Low Low Fac Low Dat Pro Fac Fac Res Used RIF Installer . | . . . . . . . . . . . . . . . . . . Robots Hacked . | . . . . . . . . . . . . . . . . . . Non-combat . | . . . . . . . . . . . . . . . . . . Combat . | . . . . . . . . . . . . . . . . . . Robot Hacks Applied . | . . . . . . . . . . . . . . . . . . Relay Couplers Released . | . . . . . . . . . . . . . . . . . . Fabnet Peak Effective % . | . . . . . . . . . . . . . . . . . . Robots Rewired . | . . . . . . . . . . . . . . . . . . Allies Hacked . | . . . . . . . . . . . . . . . . . . Hacks Repelled . | . . . . . . . . . . . . . . . . . . Allies | -11 -10 -10 -9 -9 -9 -8 -8 -7 -7 -7 -6 -6 -6 -5 -5 -4 -3 -------- Run | Yrd Mat Min Mat Min Exi Min Mat Fac Low Low Fac Low Dat Pro Fac Fac Res Total Allies 3 | . . 2 . . . . . . . . . . . 1 . . . Largest Group 2 | . . 2 2 . . . . . . . . . . 1 . . . Highest-Rated Group 96 | . . 42 42 . . . . . . . . . . 96 . . . Highest-Rated Ally 96 | . . 31 31 . . . . . . . . . . 96 . . . Total Orders . | . . . . . . . . . . . . . . . . . . Ally Attacks 34 | . . 8 19 . . . . . . . . . . 7 . . . Total Damage 589 | . . 138 261 . . . . . . . . . . 190 . . . Kills 9 | . . 2 5 . . . . . . . . . . 2 . . . Allies Corrupted . | . . . . . . . . . . . . . . . . . . Allies Melted . | . . . . . . . . . . . . . . . . . . Intel | -11 -10 -10 -9 -9 -9 -8 -8 -7 -7 -7 -6 -6 -6 -5 -5 -4 -3 ------- Run | Yrd Mat Min Mat Min Exi Min Mat Fac Low Low Fac Low Dat Pro Fac Fac Res Robot Analysis Total 5 | . 3 . 1 . . . 1 . . . . . . . . . . Derelict Logs Recovered 6 | . . 1 . . . . . . 3 . . 1 . 1 . . . Drone Launches . | . . . . . . . . . . . . . . . . . . Drone Recoveries . | . . . . . . . . . . . . . . . . . . Exploration | -11 -10 -10 -9 -9 -9 -8 -8 -7 -7 -7 -6 -6 -6 -5 -5 -4 -3 ------------- Run | Yrd Mat Min Mat Min Exi Min Mat Fac Low Low Fac Low Dat Pro Fac Fac Res Turns Passed 13921 | 73 1903 614 2392 376 1226 516 2311 1165 452 137 980 188 25 338 543 318 364 Spaces Moved 11243 | 39 820 239 1136 82 759 297 790 1668 775 215 935 401 83 1053 829 539 583 Core 5 | 5 . . . . . . . . . . . . . . . . . Treads 4157 | 34 820 239 1136 82 759 297 790 . . . . . . . . . . Legs . | . . . . . . . . . . . . . . . . . . Wheels . | . . . . . . . . . . . . . . . . . . Hover . | . . . . . . . . . . . . . . . . . . Flight 7081 | . . . . . . . . 1668 775 215 935 401 83 1053 829 539 583 Fastest Speed 26 | 50 160 240 160 160 160 160 160 50 50 50 50 30 30 30 28 26 32 Average Speed 93 | 152 181 240 164 160 160 160 230 50 50 50 50 33 30 30 30 29 37 Slowest Speed 240 | 160 240 240 240 160 160 160 240 50 50 50 50 109 30 30 105 107 119 Overloaded Moves . | . . . . . . . . . . . . . . . . . . Propulsion Burnouts . | . . . . . . . . . . . . . . . . . . Robots Hopped 14 | . . . . . . . . 2 . . 8 . . 1 3 . . Cave-ins Triggered . | . . . . . . . . . . . . . . . . . . Exploration Rate (%) 51 | 4 93 54 85 19 93 85 55 37 79 46 21 47 74 95 19 10 15 Regions Visited 17 Branch Regions 9 Pre-discovered Areas 3 | . . . . . . . . . 1 . . . 1 1 . . . Known Exits Taken 8 | . 1 1 1 1 1 1 . . . . . . . . 1 1 . Unknown Exits Taken 9 | 1 . . . . . . 1 1 1 1 1 1 1 1 . . . Scrap Searched 9 | . . 1 . . . 1 . . 3 2 . 1 . 1 . . . Spaces Dug 45 | . . . 1 2 . . . 11 . . 7 . . . 6 6 12 Terrain Destroyed 254 | . 23 27 26 8 . 14 13 11 92 9 7 . . . 6 6 12 Melee 45 | . . . 1 2 . . . 11 . . 7 . . . 6 6 12 Projectile . | . . . . . . . . . . . . . . . . . . AOE 209 | . 23 27 25 6 . 14 13 . 92 9 . . . . . . . Terrain Rammed . | . . . . . . . . . . . . . . . . . . Walls Destroyed . | . . . . . . . . . . . . . . . . . . Machines Disabled . | . . . . . . . . . . . . . . . . . . Actions | -11 -10 -10 -9 -9 -9 -8 -8 -7 -7 -7 -6 -6 -6 -5 -5 -4 -3 --------- Run | Yrd Mat Min Mat Min Exi Min Mat Fac Low Low Fac Low Dat Pro Fac Fac Res Total 13888 | 50 1073 260 1480 315 772 321 1167 1942 823 229 1421 442 82 1071 1094 648 698 Wait 1912 | 5 129 5 187 221 8 7 259 206 31 . 459 5 . 18 226 67 79 Move 11201 | 38 819 238 1135 81 758 296 789 1663 774 214 920 400 82 1050 823 538 583 Hop 11 | . . . . . . . . 2 . . 6 . . 1 2 . . Pick Up 92 | 1 19 3 18 1 1 1 11 12 2 . 7 3 . . 6 2 5 Fast Attach 49 | 6 4 . 6 . . . 5 4 . 1 3 4 . . 10 3 3 Attach 49 | . 7 . 4 . . . 2 2 . 2 7 6 . 1 3 7 8 Detach 15 | . 1 . 1 . . . . . . 1 2 3 . . 3 2 2 Swap 61 | . 8 2 12 4 1 6 17 2 . . 3 . . . 4 2 . Drop 91 | . 4 . 16 1 4 3 24 13 1 1 3 11 . . 6 1 3 Fire 278 | . 82 12 94 3 . 8 60 . 13 . . . . . 3 3 . Melee 123 | . . . 1 4 . . . 38 2 10 11 10 . 1 8 23 15 Ram . | . . . . . . . . . . . . . . . . . . Kick . | . . . . . . . . . . . . . . . . . . Crush 6 | . . . 6 . . . . . . . . . . . . . . Escape Stasis . | . . . . . . . . . . . . . . . . . . Rewire . | . . . . . . . . . . . . . . . . . . Trap . | . . . . . . . . . . . . . . . . . . Miscellaneous . | . . . . . . . . . . . . . . . . . . Route ------- -11/Scrapyard -10/Materials (discovered 4 exits: *Mat x3 / *Min) -10/Mines -9/Materials (discovered 4 exits: *Mat x3 / *Min) -9/Mines -9/Exiles (discovered 2 exits: *Min x2) -8/Mines -8/Materials (discovered 2 exits: *Fac x2) -7/Factory -7/Lower Caves -7/Lower Caves -6/Factory (discovered 2 exits: [*Low] / DSF) -6/Lower Caves -6/Data Miner -5/Proximity Caves -5/Factory (discovered 2 exits: *Fac / Upp) -4/Factory (discovered 9 exits: *Res x4 / Upp x2 / Ext x2 / Arm) -3/Research History --------- Turn | Location | Event 41 | -11/Scrapyard | Discovered new exit (range 15) 74 | -11/Scrapyard | Entered Materials 309 | -10/Materials | Build established: Mutant 372 | -10/Materials | Discovered new exit (range 15) 716 | -10/Materials | Discovered new exit (range 9) 727 | -10/Materials | Identified exit to Materials 1096 | -10/Materials | Identified exit to Mines 1204 | -10/Materials | Discovered exit to Materials (range 14) 1212 | -10/Materials | Central database locked down 1348 | -10/Materials | Build established: Scavenger-Mutant 1542 | -10/Materials | Repaired Lgt. Treads 1647 | -10/Materials | Discovered exit to Materials (range 16) 1715 | -10/Materials | Build established: Mutant 1977 | -10/Materials | Entered Mines 2225 | -10/Mines | Core integrity fell below 50% 2296 | -10/Mines | Learned location of 1 exit from Materials 2536 | -10/Mines | Discovered exit to Materials (range 10) 2591 | -10/Mines | Entered Materials 2591 | -9/Materials | Accompanied by 2 allies 2591 | -9/Materials | Evolved 2 slots: Propulsion x1, Utility x1 2592 | -9/Materials | Identified exit to Materials 2596 | -9/Materials | Led the pair of lost Derelicts to an unsafe place 2946 | -9/Materials | Repaired Lgt. Armor Plating 3117 | -9/Materials | Discovered new exit (range 9) 3128 | -9/Materials | Identified exit to Mines 3948 | -9/Materials | Discovered exit to Materials (range 5) 4447 | -9/Materials | Discovered exit to Materials (range 16) 4652 | -9/Materials | Build established: Scavenger-Mutant 4983 | -9/Materials | Entered Mines 5223 | -9/Mines | Received a Rocket Launcher from a helpful Derelict 5352 | -9/Mines | Deemed a non-threat by the Exiles lab entrance 5352 | -9/Mines | Discovered new exit (range 5) 5357 | -9/Mines | Identified exit to Exiles 5359 | -9/Mines | Entered Exiles 5383 | -9/Exiles | Discovered new exit (range 15) 5404 | -9/Exiles | Identified exit to Mines 5439 | -9/Exiles | Met 8R-AWN 5468 | -9/Exiles | Met EX-HEX 5564 | -9/Exiles | Met EX-DEC 5727 | -9/Exiles | Met EX-BIN 5946 | -9/Exiles | Visited The Gauntlet 6206 | -9/Exiles | Discovered exit to Mines (range 14) 6353 | -9/Exiles | Aligned with FarCom system 6354 | -9/Exiles | Given EX-Vault access code 6396 | -9/Exiles | Opened EX-Vault 6419 | -9/Exiles | Found Flying Fortress v7 6460 | -9/Exiles | Warned to stay clear of 0b10 Research branches 6585 | -9/Exiles | Left Exiles lab with Flying Fortress v7 6585 | -9/Exiles | Entered Mines 7085 | -8/Mines | Discovered exit to Materials (range 8) 7101 | -8/Mines | Entered Materials 7101 | -8/Materials | Evolved 2 slots: Utility x2 8230 | -8/Materials | Discovered new exit (range 7) 8664 | -8/Materials | Garrison activated, responded to threat 9234 | -8/Materials | Discovered new exit (range 12) 9412 | -8/Materials | Entered Factory 9412 | -7/Factory | Evolved 2 slots: Propulsion x1, Utility x1 9709 | -7/Factory | Build established: Hacker-Mutant 10233 | -7/Factory | Discovered new exit (range 13) 10577 | -7/Factory | Entered Lower Caves 10737 | -7/Lower Caves | Learned location of Zion (-7) 10759 | -7/Lower Caves | Attracted the attention of an 0b10 checkpoint 10806 | -7/Lower Caves | Learned 4 Factory zone layouts 11023 | -7/Lower Caves | Discovered new exit (range 10) 11029 | -7/Lower Caves | Entered another Lower Caves area 11069 | -7/Lower Caves | Attracted the attention of an 0b10 base 11160 | -7/Lower Caves | Discovered new exit (range 11) 11166 | -7/Lower Caves | Entered Factory 11166 | -6/Factory | Evolved 2 slots: Utility x2 11199 | -6/Factory | Identified exit to DSF 11388 | -6/Factory | Repaired Katana 11434 | -6/Factory | Repaired Lyr. Light Armor Plating 11680 | -6/Factory | Fabricated Hacking Suite? 11696 | -6/Factory | Build established: Infiltrator-Ninja 12134 | -6/Factory | Fabricated Hacking Suite (x1) 12136 | -6/Factory | Discovered new exit (range 5) 12146 | -6/Factory | Entered Lower Caves 12232 | -6/Lower Caves | Lost 5 parts (1p1n3u) 12291 | -6/Lower Caves | Learned 4 Factory zone layouts 12331 | -6/Lower Caves | A Derelict revealed a hidden shortcut to meet someone special 12334 | -6/Lower Caves | Entered Data Miner 12334 | -6/Data Miner | Discovered new exit (range 6) 12338 | -6/Data Miner | Met Data Miner 12346 | -6/Data Miner | Learned location of Section 7 (-3) 12346 | -6/Data Miner | Acquired the access code to Warlord's prototype stash 12352 | -6/Data Miner | Received God Mode back door access code from Data Miner 12359 | -6/Data Miner | Entered Proximity Caves 12475 | -5/Proximity Caves | Spotter reported a threat 12526 | -5/Proximity Caves | Build established: Hacker-Sprinter 12529 | -5/Proximity Caves | Spotter reported a threat 12534 | -5/Proximity Caves | Attracted the attention of an 0b10 checkpoint 12540 | -5/Proximity Caves | Spotter reported a threat 12560 | -5/Proximity Caves | Spotted B-75 Beast 12695 | -5/Proximity Caves | Discovered new exit (range 4) 12697 | -5/Proximity Caves | Entered Factory 12697 | -5/Factory | Evolved 2 slots: Propulsion x1, Utility x1 12698 | -5/Factory | Identified exit to Upper Caves 12699 | -5/Factory | Identified exit to Factory 12787 | -5/Factory | Repaired Imp. Flight Unit 12856 | -5/Factory | Incoming investigation squad redirected 12880 | -5/Factory | Fabricated Imp. Flight Unit (x1) 12997 | -5/Factory | Search patrols dispatched 13182 | -5/Factory | Repaired Lgt. Deuterium Engine 13227 | -5/Factory | Repaired Transmission Jammer 13240 | -5/Factory | Entered another Factory area 13240 | -4/Factory | Evolved 2 slots: Power x1, Propulsion x1 13248 | -4/Factory | Found Prototype Device 13248 | -4/Factory | Identified Adv. EM Disruption Field 13343 | -4/Factory | Fabricated Hacking Suite? 13387 | -4/Factory | Identified exit to Upper Caves 13387 | -4/Factory | Identified exit to Extension 13387 | -4/Factory | Identified exit to Armory 13387 | -4/Factory | Identified exit to Research 13511 | -4/Factory | Lost 7 parts (2p2n3u) 13558 | -4/Factory | Entered Research 13558 | -3/Research | Evolved 2 slots: Utility x2 13600 | -3/Research | Incoming investigation squad redirected 13643 | -3/Research | Fabricated Hacking Suite (x1) 13714 | -3/Research | System Shield fried by hacking feedback 13820 | -3/Research | Build established: Hacker-Mutant 13922 | -3/Research | Self-destructed Last Messages --------------- ALERT: Security rotation in progress. Field Propulsion Drive destroyed. Triggered Ambush Trap. G-67 Veteran emerges from a hatch in the floor. S-43 Plague emerges from a hatch in the floor. Adv. Heat Sink destroyed. W-44 Eye sends out distress signal. Acquired Impulse Thruster. Dropped Greatsword. Acquired Impulse Thruster. Imp. Heavy Machine Gun destroyed. Field Propulsion Array destroyed. Acquired Impulse Thruster. Power Maul destroyed. Lgt. Particle Reactor destroyed. Transmission Jammer destroyed. Field Propulsion Drive destroyed. Impulse Thruster destroyed. [Achievement: 10k Club] Map ----- +----------------------------------------------------+ | ????????????# ! # ##"########????????????? | | ????????????# # # ???????????????????? | | ????????????# # # #?????????????? | | ????????????# """ / / #?????????????? | | ????????????# """ # # #?????????????? | | ????????????# """ # # #?????????????? | | ????????????# ! # # #?????????????? | | ????????????# # # ! #?????????????? | | ????????????#####/#### # #?????????????? | | ????????????????# #??# # #?????????????? | | ????????????????# #??# ###########????????????? | | ????????????????# #??# #?w? ???????????? | | ?????????#??????# #??# # ??????????? | | ????????? ?????# #### + ?????????????? | | ?????????? ?????# #??????????????????????? | | ???????????"????# g #??????????????????????? | | ???????????? ?### ###+#######????????????? | | ????????????? # [ ?????????? | | ??????????????+ w = ?????????? | | ??????????????# ?????????? | | ??????????????# ] g "" #????????? | | ??????????????# ########### "" #????????? | | ??????????????# # #? T" k #????????? | | ??????????????+ g ! # "" #????????? | | ??????????????##### g g ""h ?????? | | ??????????????????# s @ # pp h ???? | | ??????????????????# s== #?? +?? | | ??????????????????# == #???? ??? | | ??????????????????# = ! #???????"######+###??? | | ??????????????????# #????????????????????? | | ??????????????????###########????????????????????? | | ?????????????????????????????????????????????????? | | ?????????????????????????????????????????????????? | | ?????????????????????????????????????????????????? | | ?????????????????????????????????????????????????? | | ?????????????????????????????????????????????????? | | ?????????????????????????????????????????????????? | | ?????????????????????????????????????????????????? | | ?????????????????????????????????????????????????? | | ?????????????????????????????????????????????????? | | ?????????????????????????????????????????????????? | | ?????????????????????????????????????????????????? | | ?????????????????????????????????????????????????? | | ?????????????????????????????????????????????????? | | ?????????????????????????????????????????????????? | | ?????????????????????????????????????????????????? | | ?????????????????????????????????????????????????? | | ?????????????????????????????????????????????????? | | ?????????????????????????????????????????????????? | | ?????????????????????????????????????????????????? | +----------------------------------------------------+ Best States ------------- Heat Dissipation 65 Energy Generation 34 Energy Capacity 265 Matter Stores 300 Matter Capacity 300 Sight Range 22 Robot Scan Range 16 Terrain Scan Density 10 Jamming Range 12 Armor Coverage 150 Propulsion Shielding 66 Weapon Shielding 90 Evasion (%) 64 Targeting Accuracy 8 Target Analysis 5 Recoil Reduction 3 Offensive Hacking 30 Defensive Hacking 10 Item Schematics ----------------- Imp. Flight Unit | -9/Materials | Scanalyzed Hacking Suite | -8/Materials | Hacked Imp. Propulsion Shielding | -8/Materials | Hacked Lgt. Deuterium Engine | -8/Materials | Scanalyzed Imp. Light Armor Plating | -8/Materials | Hacked System Shield | -8/Materials | Hacked Combat Drone Bay | -6/Data Miner | Free Enh. Flexi-carbon Leg | -6/Data Miner | Free Lgt. Regenerative Plating | -6/Data Miner | Free Exp. Heat Sink | -6/Data Miner | Free Enh. Coil Gun | -6/Data Miner | Free Adv. Medium Treads | -6/Data Miner | Free Adv. Cryofiber Web | -6/Data Miner | Free Hvy. Gauss Cannon | -6/Data Miner | Free Neutrino Core | -6/Data Miner | Free Adv. Transmission Jammer | -6/Data Miner | Free Mic. Antimatter Reactor | -6/Data Miner | Free Com. HERF Cannon | -6/Data Miner | Free Robot Schematics ------------------ B-60 Warrior | -6/Data Miner | Free M-22 Extractor | -6/Data Miner | Free R-10 Processor | -6/Data Miner | Free W-44 Eye | -6/Data Miner | Free Fabricated ------------ Hacking Suite | x1 | -6/Factory Hacking Suite | x1 | -6/Factory Imp. Flight Unit | x1 | -5/Factory Hacking Suite | x1 | -4/Factory Hacking Suite | x1 | -3/Research Alien Tech Used ----------------- None Achievements -------------- 10k Club Dangerous Findings I'm Back, Baby! Librarian Maybe Next Time I'll Detach My Launcher Part-time Excavator Serviceable Loadout The Oracle Tourist root@ Challenges ------------ None Game ------ Seed ScanArmoredWand Manual? 0 Play Time 03:51:48 Cumulative 11.9 hours Start 2024.04.15 @ 13:05:52 End 2024.04.15 @ 21:38:55 Sessions 11 Manual Loads 0 Difficulty Rogue Special Mode None Game No. 10 Rogue 10 Adventurer 0 Explorer 0 Win Type - Total 0 Types 0/0/0/0/0/0/0/0/0 Lore% 4 Gallery% 11 Achievement% 17 Wizard Run 0 Options --------- Layout 1 ASCII 0 Keyboard 0 Movement Mouse Keybinds 0 Fullscreen 1 Font 16/SmallcapsGlow Map View 50x35 Zoom Use 0% Tactical HUD 0 Map Filters NONE Filters NONE Steam SD RUN: 464c58a2-9799-483c-bbf5-0e6777d0c1ef